[Event "Titled Tuesday Blitz March 07 Late 2023"]
[White "Bilych, Olexiy"]
[Black "Hakobyan, Aram"]
[WhiteFideId "14156504"]
[BlackFideId "13306677"]
[WhiteElo "2320"]
[BlackElo "2563"]
[Result "0-1"]
[Round "03"]
[TimeControl "180+2"]
[Date "2023.03.07"]
[WhiteClock "0:00:12"]
[BlackClock "0:01:31"]

1. d4 {[%clk 0:03:00]}  g6 {[%clk 0:03:00]} 2. e4 {[%clk 0:02:59]}  Bg7 {[%clk 0:03:00]} 3. Nc3 {[%clk 0:03:00]}  c5 {[%clk 0:03:00]} 4. Be3 {[%clk 0:02:58]}  cxd4 {[%clk 0:02:59]} 5. Bxd4 {[%clk 0:02:59]}  Bxd4 {[%clk 0:02:59]} 6. Qxd4 {[%clk 0:02:59]}  Nf6 {[%clk 0:02:59]} 7. Nf3 {[%clk 0:02:50]}  Nc6 {[%clk 0:02:59]} 8. Qa4 {[%clk 0:02:48]}  d6 {[%clk 0:02:59]} 9. e5 {[%clk 0:02:43]}  dxe5 {[%clk 0:03:00]} 10. Nxe5 {[%clk 0:02:42]}  O-O {[%clk 0:02:59]} 11. Nxc6 {[%clk 0:02:40]}  bxc6 {[%clk 0:02:59]} 12. Be2 {[%clk 0:02:35]}  Qb6 {[%clk 0:02:53]} 13. Qb3 {[%clk 0:02:28]}  Be6 {[%clk 0:02:52]} 14. Qxb6 {[%clk 0:02:26]}  axb6 {[%clk 0:02:53]} 15. O-O {[%clk 0:02:24]}  Bf5 {[%clk 0:02:48]} 16. Rac1 {[%clk 0:02:12]}  Rfd8 {[%clk 0:02:48]} 17. Rfd1 {[%clk 0:02:03]}  Rxd1+ {[%clk 0:02:43]} 18. Bxd1 {[%clk 0:02:04]}  Nd5 {[%clk 0:02:17]} 19. Nxd5 {[%clk 0:01:52]}  cxd5 {[%clk 0:02:18]} 20. a3 {[%clk 0:01:45]}  e5 {[%clk 0:02:18]} 21. c3 {[%clk 0:01:35]}  Rc8 {[%clk 0:02:15]} 22. Kf1 {[%clk 0:01:30]}  Bd3+ {[%clk 0:02:10]} 23. Be2 {[%clk 0:01:27]}  Bxe2+ {[%clk 0:02:08]} 24. Kxe2 {[%clk 0:01:28]}  f5 {[%clk 0:02:08]} 25. Kd3 {[%clk 0:01:27]}  b5 {[%clk 0:02:04]} 26. Re1 {[%clk 0:01:21]}  Re8 {[%clk 0:02:02]} 27. f4 {[%clk 0:01:20]}  e4+ {[%clk 0:02:02]} 28. Kd4 {[%clk 0:01:20]}  Kf7 {[%clk 0:02:03]} 29. Kxd5 {[%clk 0:01:03]}  Rc8 {[%clk 0:02:03]} 30. Re2 {[%clk 0:01:00]}  Kf6 {[%clk 0:02:03]} 31. h4 {[%clk 0:00:51]}  h6 {[%clk 0:02:04]} 32. g3 {[%clk 0:00:51]}  g5 {[%clk 0:02:04]} 33. hxg5+ {[%clk 0:00:51]}  hxg5 {[%clk 0:02:05]} 34. Rh2 {[%clk 0:00:48]}  Rd8+ {[%clk 0:01:54]} 35. Kc5 {[%clk 0:00:40]}  Rd3 {[%clk 0:01:55]} 36. Kxb5 {[%clk 0:00:16]}  Rxg3 {[%clk 0:01:53]} 37. fxg5+ {[%clk 0:00:16]}  Kxg5 {[%clk 0:01:50]} 38. a4 {[%clk 0:00:17]}  e3 {[%clk 0:01:46]} 39. Kc4 {[%clk 0:00:16]}  f4 {[%clk 0:01:36]} 40. Kd3 {[%clk 0:00:16]}  Rg1 {[%clk 0:01:36]} 41. Rh8 {[%clk 0:00:14]}  Rd1+ {[%clk 0:01:36]} 42. Ke2 {[%clk 0:00:15]}  Rd2+ {[%clk 0:01:36]} 43. Ke1 {[%clk 0:00:15]}  Rxb2 {[%clk 0:01:36]} 44. Rg8+ {[%clk 0:00:15]}  Kf5 {[%clk 0:01:36]} 45. a5 {[%clk 0:00:15]}  Ke4 {[%clk 0:01:32]} 46. a6 {[%clk 0:00:14]}  Rb1+ {[%clk 0:01:30]} 47. Ke2 {[%clk 0:00:12]}  f3# {[%clk 0:01:31]} 0-1


[Site "https://www.chess.com"]

[Event "Titled Tuesday Blitz March 07 Late 2023"]
[White "Nasuta, Grzegorz"]
[Black "Bortnyk, Mykola"]
[WhiteFideId "1141686"]
[BlackFideId "14120836"]
[WhiteElo "2449"]
[BlackElo "2582"]
[Result "0-1"]
[Round "03"]
[TimeControl "180+2"]
[Date "2023.03.07"]
[WhiteClock "0:00:37"]
[BlackClock "0:01:33"]

1. e4 {[%clk 0:03:00]}  Nf6 {[%clk 0:03:00]} 2. e5 {[%clk 0:02:58]}  Nd5 {[%clk 0:03:00]} 3. d4 {[%clk 0:02:56]}  d6 {[%clk 0:03:01]} 4. c4 {[%clk 0:02:56]}  Nb6 {[%clk 0:03:01]} 5. exd6 {[%clk 0:02:56]}  exd6 {[%clk 0:03:02]} 6. Nc3 {[%clk 0:02:54]}  Be7 {[%clk 0:03:03]} 7. Be3 {[%clk 0:02:54]}  O-O {[%clk 0:03:03]} 8. Bd3 {[%clk 0:02:54]}  Bf6 {[%clk 0:03:04]} 9. Nge2 {[%clk 0:02:51]}  Bg4 {[%clk 0:03:04]} 10. b3 {[%clk 0:02:48]}  c5 {[%clk 0:02:59]} 11. f3 {[%clk 0:02:46]}  Re8 {[%clk 0:02:56]} 12. Ne4 {[%clk 0:02:32]}  cxd4 {[%clk 0:02:55]} 13. Bf2 {[%clk 0:02:19]}  Bh5 {[%clk 0:02:45]} 14. O-O {[%clk 0:02:17]}  Nc6 {[%clk 0:02:46]} 15. Nxf6+ {[%clk 0:02:10]}  Qxf6 {[%clk 0:02:45]} 16. Nxd4 {[%clk 0:02:10]}  Nxd4 {[%clk 0:02:45]} 17. Bxh7+ {[%clk 0:01:51]}  Kxh7 {[%clk 0:02:44]} 18. Bxd4 {[%clk 0:01:51]}  Qe6 {[%clk 0:02:37]} 19. Rf2 {[%clk 0:01:42]}  Nd7 {[%clk 0:02:33]} 20. Qd2 {[%clk 0:01:41]}  Bg6 {[%clk 0:02:30]} 21. Rd1 {[%clk 0:01:38]}  d5 {[%clk 0:02:26]} 22. c5 {[%clk 0:01:36]}  Rac8 {[%clk 0:02:24]} 23. b4 {[%clk 0:01:36]}  b6 {[%clk 0:02:25]} 24. Qc3 {[%clk 0:01:22]}  bxc5 {[%clk 0:02:23]} 25. bxc5 {[%clk 0:01:23]}  f6 {[%clk 0:02:11]} 26. h3 {[%clk 0:01:22]}  Qa6 {[%clk 0:02:08]} 27. Rc1 {[%clk 0:01:20]}  Ne5 {[%clk 0:02:03]} 28. Rd2 {[%clk 0:01:08]}  Nd3 {[%clk 0:01:58]} 29. Rcd1 {[%clk 0:01:02]}  Nf4 {[%clk 0:01:58]} 30. Qb2 {[%clk 0:00:50]}  Re2 {[%clk 0:01:40]} 31. Bf2 {[%clk 0:00:37]}  Nd3 {[%clk 0:01:33]} 0-1


[Site "https://www.chess.com"]

[Event "Titled Tuesday Blitz March 07 Late 2023"]
[White "Yoo, Christopher Woojin"]
[Black "Weichhold, Pawel"]
[WhiteFideId "30909694"]
[BlackFideId "1139703"]
[WhiteElo "2519"]
[BlackElo "2330"]
[Result "1-0"]
[Round "03"]
[TimeControl "180+2"]
[Date "2023.03.07"]
[WhiteClock "0:01:28"]
[BlackClock "0:00:40"]

1. d4 {[%clk 0:03:00]}  Nf6 {[%clk 0:02:59]} 2. Nf3 {[%clk 0:02:58]}  g6 {[%clk 0:02:59]} 3. c4 {[%clk 0:02:59]}  Bg7 {[%clk 0:02:59]} 4. g3 {[%clk 0:02:59]}  O-O {[%clk 0:03:00]} 5. Bg2 {[%clk 0:03:00]}  d6 {[%clk 0:03:00]} 6. O-O {[%clk 0:03:00]}  Nc6 {[%clk 0:03:01]} 7. Nc3 {[%clk 0:02:54]}  Bg4 {[%clk 0:03:01]} 8. d5 {[%clk 0:02:53]}  Na5 {[%clk 0:03:01]} 9. Nd2 {[%clk 0:02:45]}  c5 {[%clk 0:03:00]} 10. h3 {[%clk 0:02:45]}  Bd7 {[%clk 0:03:00]} 11. e4 {[%clk 0:02:46]}  e5 {[%clk 0:02:58]} 12. b3 {[%clk 0:02:17]}  a6 {[%clk 0:02:57]} 13. Qe2 {[%clk 0:02:16]}  Rb8 {[%clk 0:02:54]} 14. a3 {[%clk 0:02:16]}  Qc7 {[%clk 0:02:42]} 15. b4 {[%clk 0:02:11]}  cxb4 {[%clk 0:02:43]} 16. axb4 {[%clk 0:02:11]}  Nxc4 {[%clk 0:02:43]} 17. Qxc4 {[%clk 0:02:02]}  Qxc4 {[%clk 0:02:41]} 18. Nxc4 {[%clk 0:02:03]}  Rfc8 {[%clk 0:02:37]} 19. Nxd6 {[%clk 0:02:03]}  Rxc3 {[%clk 0:02:36]} 20. Bb2 {[%clk 0:02:04]}  Rb3 {[%clk 0:02:24]} 21. Bxe5 {[%clk 0:02:03]}  Rxb4 {[%clk 0:02:21]} 22. Rfc1 {[%clk 0:01:54]}  Nxe4 {[%clk 0:01:38]} 23. Bxg7 {[%clk 0:01:50]}  Nxd6 {[%clk 0:01:38]} 24. Be5 {[%clk 0:01:51]}  Rb6 {[%clk 0:01:39]} 25. Rab1 {[%clk 0:01:45]}  Bb5 {[%clk 0:01:39]} 26. Bd4 {[%clk 0:01:45]}  Nc8 {[%clk 0:01:31]} 27. Rxc8+ {[%clk 0:01:42]}  Rxc8 {[%clk 0:01:32]} 28. Bxb6 {[%clk 0:01:42]}  Rc2 {[%clk 0:01:23]} 29. Rd1 {[%clk 0:01:39]}  Bd7 {[%clk 0:01:18]} 30. d6 {[%clk 0:01:39]}  h5 {[%clk 0:01:12]} 31. Re1 {[%clk 0:01:34]}  Rb2 {[%clk 0:01:03]} 32. Re7 {[%clk 0:01:32]}  Rxb6 {[%clk 0:00:55]} 33. Rxd7 {[%clk 0:01:31]}  a5 {[%clk 0:00:56]} 34. Rd8+ {[%clk 0:01:30]}  Kg7 {[%clk 0:00:56]} 35. d7 {[%clk 0:01:30]}  Rd6 {[%clk 0:00:55]} 36. Bxb7 {[%clk 0:01:31]}  a4 {[%clk 0:00:54]} 37. Bc6 {[%clk 0:01:30]}  Rxc6 {[%clk 0:00:40]} 38. Rc8 {[%clk 0:01:28]} 1-0


[Site "https://www.chess.com"]

[Event "Titled Tuesday Blitz March 07 Late 2023"]
[White "Durarbayli, Vasif"]
[Black "Wieczorek, Oskar"]
[WhiteFideId "13402935"]
[BlackFideId "1133950"]
[WhiteElo "2543"]
[BlackElo "2418"]
[Result "1-0"]
[Round "03"]
[TimeControl "180+2"]
[Date "2023.03.07"]
[WhiteClock "0:00:24"]
[BlackClock "0:00:15"]

1. e4 {[%clk 0:03:00]}  c5 {[%clk 0:02:58]} 2. Nf3 {[%clk 0:03:01]}  e6 {[%clk 0:02:59]} 3. d4 {[%clk 0:03:01]}  cxd4 {[%clk 0:03:00]} 4. Nxd4 {[%clk 0:03:01]}  Nf6 {[%clk 0:03:00]} 5. Nc3 {[%clk 0:03:01]}  d6 {[%clk 0:03:01]} 6. g4 {[%clk 0:03:00]}  e5 {[%clk 0:03:02]} 7. Bb5+ {[%clk 0:02:51]}  Bd7 {[%clk 0:02:58]} 8. Bxd7+ {[%clk 0:02:50]}  Qxd7 {[%clk 0:02:59]} 9. Nf5 {[%clk 0:02:50]}  h5 {[%clk 0:02:59]} 10. g5 {[%clk 0:02:49]}  Nxe4 {[%clk 0:02:57]} 11. Nxg7+ {[%clk 0:02:49]}  Bxg7 {[%clk 0:02:57]} 12. Nxe4 {[%clk 0:02:50]}  d5 {[%clk 0:02:54]} 13. Nc3 {[%clk 0:02:46]}  d4 {[%clk 0:02:28]} 14. Ne4 {[%clk 0:02:46]}  h4 {[%clk 0:02:25]} 15. Bd2 {[%clk 0:02:32]}  Nc6 {[%clk 0:02:22]} 16. Qf3 {[%clk 0:02:31]}  O-O-O {[%clk 0:02:05]} 17. O-O-O {[%clk 0:02:30]}  Qd5 {[%clk 0:01:57]} 18. Kb1 {[%clk 0:02:29]}  h3 {[%clk 0:01:53]} 19. Rhe1 {[%clk 0:02:07]}  Kb8 {[%clk 0:01:48]} 20. Qg3 {[%clk 0:01:55]}  Ka8 {[%clk 0:01:45]} 21. a3 {[%clk 0:01:50]}  Rc8 {[%clk 0:01:40]} 22. f4 {[%clk 0:01:43]}  Ne7 {[%clk 0:01:34]} 23. Qd3 {[%clk 0:01:32]}  exf4 {[%clk 0:01:22]} 24. Bxf4 {[%clk 0:01:31]}  Ng6 {[%clk 0:01:22]} 25. Bg3 {[%clk 0:01:28]}  Ne5 {[%clk 0:01:13]} 26. Bxe5 {[%clk 0:01:20]}  Bxe5 {[%clk 0:01:14]} 27. Re2 {[%clk 0:01:20]}  Rhe8 {[%clk 0:00:58]} 28. Qxh3 {[%clk 0:01:00]}  Rh8 {[%clk 0:00:36]} 29. Qf5 {[%clk 0:00:57]}  Qc4 {[%clk 0:00:34]} 30. Rdd2 {[%clk 0:00:37]}  d3 {[%clk 0:00:17]} 31. Rxd3 {[%clk 0:00:26]}  Rxh2 {[%clk 0:00:14]} 32. Rxh2 {[%clk 0:00:25]}  Bxh2 {[%clk 0:00:15]} 33. Rc3 {[%clk 0:00:24]} 1-0


[Site "https://www.chess.com"]

[Event "Titled Tuesday Blitz March 07 Late 2023"]
[White "Bluebaum, Matthias"]
[Black "Cardoso Cardoso, Jose Gabriel"]
[WhiteFideId "24651516"]
[BlackFideId "4430492"]
[WhiteElo "2638"]
[BlackElo "2496"]
[Result "1-0"]
[Round "03"]
[TimeControl "180+2"]
[Date "2023.03.07"]
[WhiteClock "0:00:17"]
[BlackClock "0:00:14"]

1. d4 {[%clk 0:03:00]}  d5 {[%clk 0:02:58]} 2. c4 {[%clk 0:03:00]}  e6 {[%clk 0:02:58]} 3. Nc3 {[%clk 0:03:00]}  Nf6 {[%clk 0:02:51]} 4. cxd5 {[%clk 0:03:01]}  exd5 {[%clk 0:02:52]} 5. Bf4 {[%clk 0:03:01]}  Bd6 {[%clk 0:02:49]} 6. Bxd6 {[%clk 0:03:01]}  Qxd6 {[%clk 0:02:49]} 7. e3 {[%clk 0:03:02]}  c6 {[%clk 0:02:43]} 8. Bd3 {[%clk 0:03:02]}  Bg4 {[%clk 0:02:41]} 9. f3 {[%clk 0:03:02]}  Bh5 {[%clk 0:02:40]} 10. Nge2 {[%clk 0:03:03]}  Bg6 {[%clk 0:02:39]} 11. e4 {[%clk 0:03:03]}  dxe4 {[%clk 0:02:16]} 12. fxe4 {[%clk 0:03:04]}  Qe7 {[%clk 0:01:59]} 13. e5 {[%clk 0:02:57]}  Ng4 {[%clk 0:01:00]} 14. Qd2 {[%clk 0:02:55]}  Na6 {[%clk 0:00:56]} 15. O-O {[%clk 0:02:50]}  Rd8 {[%clk 0:00:46]} 16. Bxa6 {[%clk 0:02:13]}  bxa6 {[%clk 0:00:45]} 17. Qf4 {[%clk 0:02:14]}  Nh6 {[%clk 0:00:39]} 18. Ng3 {[%clk 0:02:04]}  O-O {[%clk 0:00:37]} 19. Rad1 {[%clk 0:01:59]}  f6 {[%clk 0:00:35]} 20. Nge4 {[%clk 0:01:50]}  fxe5 {[%clk 0:00:34]} 21. Qxe5 {[%clk 0:01:51]}  Rxf1+ {[%clk 0:00:32]} 22. Rxf1 {[%clk 0:01:51]}  Qxe5 {[%clk 0:00:31]} 23. dxe5 {[%clk 0:01:52]}  Re8 {[%clk 0:00:29]} 24. Rd1 {[%clk 0:01:14]}  Rxe5 {[%clk 0:00:29]} 25. Rd8+ {[%clk 0:01:15]}  Kf7 {[%clk 0:00:30]} 26. Nd2 {[%clk 0:01:05]}  Ng4 {[%clk 0:00:30]} 27. Nf3 {[%clk 0:01:04]}  Re7 {[%clk 0:00:24]} 28. h3 {[%clk 0:01:03]}  Ne5 {[%clk 0:00:22]} 29. Nd4 {[%clk 0:00:28]}  Rb7 {[%clk 0:00:22]} 30. b3 {[%clk 0:00:27]}  c5 {[%clk 0:00:22]} 31. Nde2 {[%clk 0:00:27]}  c4 {[%clk 0:00:22]} 32. Rd5 {[%clk 0:00:26]}  cxb3 {[%clk 0:00:21]} 33. axb3 {[%clk 0:00:26]}  Nc6 {[%clk 0:00:19]} 34. Rd6 {[%clk 0:00:26]}  Na5 {[%clk 0:00:16]} 35. Rxa6 {[%clk 0:00:17]}  Nxb3 {[%clk 0:00:16]} 36. Ng3 {[%clk 0:00:15]}  Nc5 {[%clk 0:00:15]} 37. Ra5 {[%clk 0:00:16]}  Ne6 {[%clk 0:00:14]} 38. Nce4 {[%clk 0:00:16]}  Bxe4 {[%clk 0:00:14]} 39. Nxe4 {[%clk 0:00:16]}  h6 {[%clk 0:00:14]} 40. Nd6+ {[%clk 0:00:17]} 1-0


[Site "https://www.chess.com"]

[Event "Titled Tuesday Blitz March 07 Late 2023"]
[White "Almeida Quintana, Omar"]
[Black "Sjugirov, Sanan"]
[WhiteFideId "3503313"]
[BlackFideId "4189302"]
[WhiteElo "2530"]
[BlackElo "2569"]
[Result "0-1"]
[Round "03"]
[TimeControl "180+2"]
[Date "2023.03.07"]
[WhiteClock "0:00:14"]
[BlackClock "0:00:03"]

1. d4 {[%clk 0:03:00]}  Nf6 {[%clk 0:03:00]} 2. c4 {[%clk 0:03:00]}  e6 {[%clk 0:03:00]} 3. Nf3 {[%clk 0:03:00]}  d5 {[%clk 0:02:59]} 4. Nc3 {[%clk 0:02:59]}  c6 {[%clk 0:02:59]} 5. Qd3 {[%clk 0:02:58]}  dxc4 {[%clk 0:02:58]} 6. Qxc4 {[%clk 0:02:58]}  b5 {[%clk 0:02:58]} 7. Qd3 {[%clk 0:02:58]}  a6 {[%clk 0:02:58]} 8. g4 {[%clk 0:02:58]}  Nxg4 {[%clk 0:02:28]} 9. Rg1 {[%clk 0:02:57]}  Nf6 {[%clk 0:02:28]} 10. Bf4 {[%clk 0:02:51]}  Nbd7 {[%clk 0:02:24]} 11. O-O-O {[%clk 0:02:46]}  Bb7 {[%clk 0:02:22]} 12. e4 {[%clk 0:02:45]}  Qa5 {[%clk 0:02:09]} 13. e5 {[%clk 0:02:25]}  Nd5 {[%clk 0:02:05]} 14. Nxd5 {[%clk 0:02:24]}  cxd5 {[%clk 0:02:05]} 15. Kb1 {[%clk 0:02:24]}  Rc8 {[%clk 0:01:55]} 16. h4 {[%clk 0:02:17]}  g6 {[%clk 0:01:37]} 17. h5 {[%clk 0:02:13]}  Be7 {[%clk 0:01:31]} 18. Bg5 {[%clk 0:02:05]}  Qd8 {[%clk 0:01:23]} 19. Bh3 {[%clk 0:01:53]}  Rc6 {[%clk 0:01:04]} 20. Qe3 {[%clk 0:01:34]}  Bxg5 {[%clk 0:00:31]} 21. Nxg5 {[%clk 0:01:29]}  Qe7 {[%clk 0:00:18]} 22. f4 {[%clk 0:00:51]}  Nb6 {[%clk 0:00:10]} 23. Bf1 {[%clk 0:00:44]}  Nc4 {[%clk 0:00:08]} 24. Bxc4 {[%clk 0:00:42]}  bxc4 {[%clk 0:00:08]} 25. h6 {[%clk 0:00:36]}  Rb6 {[%clk 0:00:07]} 26. Rg2 {[%clk 0:00:30]}  O-O {[%clk 0:00:04]} 27. Nf3 {[%clk 0:00:29]}  Rb8 {[%clk 0:00:02]} 28. Ka1 {[%clk 0:00:28]}  Bc6 {[%clk 0:00:02]} 29. Rc1 {[%clk 0:00:28]}  a5 {[%clk 0:00:02]} 30. Ng5 {[%clk 0:00:20]}  a4 {[%clk 0:00:02]} 31. f5 {[%clk 0:00:20]}  exf5 {[%clk 0:00:02]} 32. e6 {[%clk 0:00:20]}  f6 {[%clk 0:00:02]} 33. Nxh7 {[%clk 0:00:20]}  Kxh7 {[%clk 0:00:02]} 34. Qf4 {[%clk 0:00:20]}  a3 {[%clk 0:00:02]} 35. b3 {[%clk 0:00:21]}  cxb3 {[%clk 0:00:02]} 36. axb3 {[%clk 0:00:19]}  Rxb3 {[%clk 0:00:02]} 37. Rcg1 {[%clk 0:00:19]}  Qb7 {[%clk 0:00:02]} 38. Qc1 {[%clk 0:00:15]}  g5 {[%clk 0:00:03]} 39. Rxg5 {[%clk 0:00:14]}  fxg5 {[%clk 0:00:03]} 0-1


[Site "https://www.chess.com"]

[Event "Titled Tuesday Blitz March 07 Late 2023"]
[White "Indjic, Aleksandar"]
[Black "Timmermans, Mark"]
[WhiteFideId "911925"]
[BlackFideId "1026399"]
[WhiteElo "2614"]
[BlackElo "2460"]
[Result "1/2-1/2"]
[Round "03"]
[TimeControl "180+2"]
[Date "2023.03.07"]
[WhiteClock "0:00:21"]
[BlackClock "0:00:45"]

1. d4 {[%clk 0:03:00]}  Nf6 {[%clk 0:02:59]} 2. c4 {[%clk 0:02:55]}  e6 {[%clk 0:02:59]} 3. Nc3 {[%clk 0:02:55]}  Bb4 {[%clk 0:02:59]} 4. e3 {[%clk 0:02:55]}  Ne4 {[%clk 0:02:58]} 5. Qc2 {[%clk 0:02:52]}  f5 {[%clk 0:02:57]} 6. Bd3 {[%clk 0:02:41]}  O-O {[%clk 0:02:56]} 7. Ne2 {[%clk 0:02:37]}  b6 {[%clk 0:02:56]} 8. f3 {[%clk 0:02:35]}  Bxc3+ {[%clk 0:02:51]} 9. bxc3 {[%clk 0:02:25]}  Nd6 {[%clk 0:02:51]} 10. e4 {[%clk 0:02:25]}  fxe4 {[%clk 0:02:52]} 11. fxe4 {[%clk 0:02:25]}  e5 {[%clk 0:02:50]} 12. c5 {[%clk 0:02:01]}  bxc5 {[%clk 0:02:44]} 13. dxc5 {[%clk 0:02:02]}  Ne8 {[%clk 0:02:44]} 14. Bc4+ {[%clk 0:01:59]}  Kh8 {[%clk 0:02:44]} 15. Be3 {[%clk 0:01:53]}  Ba6 {[%clk 0:02:35]} 16. Bd5 {[%clk 0:01:49]}  Nc6 {[%clk 0:02:25]} 17. O-O-O {[%clk 0:01:49]}  Qe7 {[%clk 0:02:16]} 18. Ng3 {[%clk 0:01:48]}  Nf6 {[%clk 0:02:12]} 19. Nf5 {[%clk 0:01:47]}  Qe8 {[%clk 0:02:13]} 20. g4 {[%clk 0:01:14]}  Nxd5 {[%clk 0:02:04]} 21. exd5 {[%clk 0:01:12]}  Ne7 {[%clk 0:02:05]} 22. c4 {[%clk 0:00:59]}  Nxf5 {[%clk 0:02:01]} 23. gxf5 {[%clk 0:01:00]}  Qh5 {[%clk 0:02:01]} 24. Qa4 {[%clk 0:01:00]}  Qf3 {[%clk 0:01:54]} 25. Rhe1 {[%clk 0:00:56]}  Bc8 {[%clk 0:01:52]} 26. Rd2 {[%clk 0:00:56]}  d6 {[%clk 0:01:42]} 27. Rf2 {[%clk 0:00:37]}  Qe4 {[%clk 0:01:42]} 28. Qc2 {[%clk 0:00:35]}  Bxf5 {[%clk 0:01:41]} 29. Qxe4 {[%clk 0:00:35]}  Bxe4 {[%clk 0:01:42]} 30. Rxf8+ {[%clk 0:00:34]}  Rxf8 {[%clk 0:01:42]} 31. Kd2 {[%clk 0:00:35]}  Bg6 {[%clk 0:01:39]} 32. c6 {[%clk 0:00:34]}  Rb8 {[%clk 0:01:31]} 33. Kc3 {[%clk 0:00:34]}  Kg8 {[%clk 0:01:21]} 34. Rf1 {[%clk 0:00:30]}  a5 {[%clk 0:01:19]} 35. Rf2 {[%clk 0:00:20]}  Be4 {[%clk 0:01:17]} 36. Bg5 {[%clk 0:00:19]}  h6 {[%clk 0:01:15]} 37. Be3 {[%clk 0:00:19]}  a4 {[%clk 0:01:14]} 38. Rb2 {[%clk 0:00:19]}  Rxb2 {[%clk 0:01:10]} 39. Kxb2 {[%clk 0:00:20]}  Kf7 {[%clk 0:01:11]} 40. Kc3 {[%clk 0:00:20]}  Bb1 {[%clk 0:01:06]} 41. h4 {[%clk 0:00:20]}  Bxa2 {[%clk 0:01:04]} 42. Ba7 {[%clk 0:00:19]}  Ke7 {[%clk 0:00:58]} 43. Be3 {[%clk 0:00:19]}  a3 {[%clk 0:00:56]} 44. Bc1 {[%clk 0:00:18]}  g5 {[%clk 0:00:48]} 45. hxg5 {[%clk 0:00:18]}  hxg5 {[%clk 0:00:49]} 46. Bxg5+ {[%clk 0:00:18]}  Ke8 {[%clk 0:00:49]} 47. Bc1 {[%clk 0:00:19]}  Kd8 {[%clk 0:00:46]} 48. Bxa3 {[%clk 0:00:20]}  Kc8 {[%clk 0:00:45]} 49. Bc1 {[%clk 0:00:20]}  Kb8 {[%clk 0:00:45]} 50. Ba3 {[%clk 0:00:20]}  Kc8 {[%clk 0:00:45]} 51. Bb4 {[%clk 0:00:21]}  Kb8 {[%clk 0:00:45]} 52. Ba3 {[%clk 0:00:21]}  Kc8 {[%clk 0:00:45]} 1/2-1/2


[Site "https://www.chess.com"]

[Event "Titled Tuesday Blitz March 07 Late 2023"]
[White "Sai Krishna G V"]
[Black "Ibarra Jerez, Jose Carlos"]
[WhiteFideId "5028280"]
[BlackFideId "2226332"]
[WhiteElo "2359"]
[BlackElo "2638"]
[Result "0-1"]
[Round "03"]
[TimeControl "180+2"]
[Date "2023.03.07"]
[WhiteClock "0:00:35"]
[BlackClock "0:00:47"]

1. e4 {[%clk 0:03:00]}  c5 {[%clk 0:02:59]} 2. Nf3 {[%clk 0:02:56]}  e6 {[%clk 0:02:59]} 3. d4 {[%clk 0:02:56]}  cxd4 {[%clk 0:03:00]} 4. Nxd4 {[%clk 0:02:57]}  Bc5 {[%clk 0:03:00]} 5. Nb3 {[%clk 0:02:56]}  Bb6 {[%clk 0:03:01]} 6. Qg4 {[%clk 0:02:56]}  Nf6 {[%clk 0:03:01]} 7. Qxg7 {[%clk 0:02:44]}  Bxf2+ {[%clk 0:03:00]} 8. Ke2 {[%clk 0:02:38]}  Rg8 {[%clk 0:03:00]} 9. Qh6 {[%clk 0:02:38]}  Bb6 {[%clk 0:02:49]} 10. Bg5 {[%clk 0:02:30]}  Rg6 {[%clk 0:02:48]} 11. Qh4 {[%clk 0:02:30]}  h6 {[%clk 0:02:47]} 12. Bxf6 {[%clk 0:02:24]}  Rxf6 {[%clk 0:02:45]} 13. Qg3 {[%clk 0:02:21]}  Rf2+ {[%clk 0:02:40]} 14. Kd1 {[%clk 0:02:20]}  Qg5 {[%clk 0:02:12]} 15. Nc3 {[%clk 0:02:12]}  Nc6 {[%clk 0:02:03]} 16. Nb5 {[%clk 0:01:51]}  Qxg3 {[%clk 0:01:56]} 17. hxg3 {[%clk 0:01:51]}  Ne5 {[%clk 0:01:56]} 18. a4 {[%clk 0:01:32]}  a6 {[%clk 0:01:53]} 19. Na3 {[%clk 0:01:24]}  d5 {[%clk 0:01:47]} 20. a5 {[%clk 0:01:21]}  Be3 {[%clk 0:01:46]} 21. c3 {[%clk 0:01:10]}  dxe4 {[%clk 0:01:37]} 22. Nc2 {[%clk 0:01:07]}  Bg5 {[%clk 0:01:32]} 23. Ra4 {[%clk 0:01:00]}  f5 {[%clk 0:01:28]} 24. Rb4 {[%clk 0:00:52]}  Nd3 {[%clk 0:01:20]} 25. Bxd3 {[%clk 0:00:42]}  exd3 {[%clk 0:01:20]} 26. Ne1 {[%clk 0:00:43]}  Rxb2 {[%clk 0:01:11]} 27. Nxd3 {[%clk 0:00:41]}  Rxg2 {[%clk 0:01:08]} 28. Ndc5 {[%clk 0:00:34]}  Rxg3 {[%clk 0:01:03]} 29. Nxb7 {[%clk 0:00:35]}  Bxb7 {[%clk 0:00:58]} 30. Rxb7 {[%clk 0:00:35]}  O-O-O+ {[%clk 0:00:47]} 0-1


[Site "https://www.chess.com"]

[Event "Titled Tuesday Blitz March 07 Late 2023"]
[White "Zarubitski, Viachaslau"]
[Black "Martinez Alcantara, Jose Eduardo"]
[WhiteFideId "13509373"]
[BlackFideId "3805662"]
[WhiteElo "2284"]
[BlackElo "2712"]
[Result "0-1"]
[Round "03"]
[TimeControl "180+2"]
[Date "2023.03.07"]
[WhiteClock "0:00:01"]
[BlackClock "0:00:39"]

1. Nf3 {[%clk 0:02:59]}  c5 {[%clk 0:02:59]} 2. e4 {[%clk 0:02:58]}  d6 {[%clk 0:02:59]} 3. Bb5+ {[%clk 0:02:58]}  Nd7 {[%clk 0:03:00]} 4. d4 {[%clk 0:02:58]}  cxd4 {[%clk 0:03:00]} 5. Qxd4 {[%clk 0:02:59]}  a6 {[%clk 0:03:01]} 6. Bxd7+ {[%clk 0:02:59]}  Bxd7 {[%clk 0:03:02]} 7. Nc3 {[%clk 0:02:59]}  Rc8 {[%clk 0:03:01]} 8. O-O {[%clk 0:02:59]}  e5 {[%clk 0:03:01]} 9. Qd3 {[%clk 0:02:59]}  h6 {[%clk 0:03:02]} 10. Nd2 {[%clk 0:02:57]}  Be6 {[%clk 0:02:59]} 11. Rd1 {[%clk 0:02:57]}  Nf6 {[%clk 0:02:54]} 12. Nf1 {[%clk 0:02:57]}  Qc7 {[%clk 0:02:53]} 13. Ne3 {[%clk 0:02:57]}  Be7 {[%clk 0:02:54]} 14. a4 {[%clk 0:02:57]}  O-O {[%clk 0:02:54]} 15. Bd2 {[%clk 0:02:56]}  Rfd8 {[%clk 0:02:55]} 16. Be1 {[%clk 0:02:55]}  Bf8 {[%clk 0:02:39]} 17. a5 {[%clk 0:02:54]}  Qc6 {[%clk 0:02:36]} 18. f3 {[%clk 0:02:44]}  Nh5 {[%clk 0:02:36]} 19. Ned5 {[%clk 0:02:32]}  Bxd5 {[%clk 0:02:33]} 20. Qxd5 {[%clk 0:02:32]}  Nf4 {[%clk 0:02:30]} 21. Qxc6 {[%clk 0:02:13]}  bxc6 {[%clk 0:02:31]} 22. Na4 {[%clk 0:02:12]}  d5 {[%clk 0:02:18]} 23. Bf2 {[%clk 0:02:12]}  d4 {[%clk 0:02:16]} 24. Nb6 {[%clk 0:02:09]}  Rb8 {[%clk 0:02:16]} 25. g3 {[%clk 0:01:56]}  Ne6 {[%clk 0:02:13]} 26. c3 {[%clk 0:01:52]}  c5 {[%clk 0:02:05]} 27. cxd4 {[%clk 0:01:47]}  cxd4 {[%clk 0:02:05]} 28. Kf1 {[%clk 0:01:42]}  Nc5 {[%clk 0:02:02]} 29. b4 {[%clk 0:01:31]}  Nd7 {[%clk 0:02:02]} 30. Nd5 {[%clk 0:01:30]}  Bxb4 {[%clk 0:01:58]} 31. Rdb1 {[%clk 0:01:25]}  Bd6 {[%clk 0:01:53]} 32. Ke2 {[%clk 0:01:24]}  Rdc8 {[%clk 0:01:40]} 33. Nb6 {[%clk 0:01:12]}  Rc2+ {[%clk 0:01:36]} 34. Kf1 {[%clk 0:01:07]}  Nc5 {[%clk 0:01:32]} 35. Be1 {[%clk 0:00:54]}  Nd3 {[%clk 0:01:25]} 36. h4 {[%clk 0:00:37]}  Kh7 {[%clk 0:01:09]} 37. Rb3 {[%clk 0:00:34]}  Nc5 {[%clk 0:01:06]} 38. Rbb1 {[%clk 0:00:24]}  f5 {[%clk 0:00:49]} 39. exf5 {[%clk 0:00:22]}  Rf8 {[%clk 0:00:49]} 40. g4 {[%clk 0:00:23]}  e4 {[%clk 0:00:48]} 41. fxe4 {[%clk 0:00:19]}  Nxe4 {[%clk 0:00:49]} 42. Nd7 {[%clk 0:00:12]}  Rf7 {[%clk 0:00:46]} 43. Rb7 {[%clk 0:00:12]}  h5 {[%clk 0:00:44]} 44. Rd1 {[%clk 0:00:07]}  hxg4 {[%clk 0:00:42]} 45. f6 {[%clk 0:00:04]}  Nxf6 {[%clk 0:00:37]} 46. Nxf6+ {[%clk 0:00:02]}  Rxf6+ {[%clk 0:00:38]} 47. Kg1 {[%clk 0:00:01]}  Bh2+ {[%clk 0:00:39]} 0-1


[Site "https://www.chess.com"]